Cogmind - Beta 12 @@@ ROGUE MODE // 2023.05.13 @ 21:26:09 Player: TheGreatBorealis Result: Destroyed by A-27 Freighter with PD Laser Performance ------------- Evolutions (4) 2000 Regions Visited (8) 1600 Robots Destroyed (107) 535 Value Destroyed (3091) 3091 Prototype IDs (9) 180 Alien Tech Used (0) 0 Bonus (500) 500 TOTAL SCORE: 7906 Bonus ------- Entered DSFs 500 Cogmind --------- Core Integrity 0/850 Matter 261/300 Energy 100/100 System Corruption 1% Temperature Cool (6) Movement Core (50) Location -6/Factory Parts ------- > --- POWER (2) -------- (None) > --- PROPULSION (4) --- (None) > --- UTILITY (7) ------ Advanced Signal Interpreter > --- WEAPON (2) ------- (None) > --- INVENTORY (5) ---- Large Storage Unit Improved Sensor Array Flak Gun Katana Katana Peak State ------------ > --- POWER ------------ Light Nuclear Core Micro Nuclear Core > --- PROPULSION ------- Carbon-fiber Leg Carbon-fiber Leg Carbon-fiber Leg Flexi-carbon Leg > --- UTILITY ---------- Improved Heat Sink Improved Heat Sink Advanced Heat Sink Large Storage Unit Large Storage Unit Advanced Visual Processing Unit Improved Light Armor Plating > --- WEAPON ----------- Heavy Laser Gauss Rifle > --- INVENTORY -------- Light Nuclear Core Light Treads Armored Treads Large Storage Unit Huge Storage Unit Improved Sensor Array Energy Filter Pulse Rifle Heavy Laser Heavy Laser Heavy Laser Gatling Laser Proton Cannon Katana [Rating: 52] Favorites ----------- Power Light Ion Engine Engine Light Ion Engine Power Core Light Nuclear Core Propulsion Improved Treads Treads Improved Treads Leg Aluminum Leg Wheel Compact Wheel Utility Large Storage Unit Device Improved Sensor Array Storage Large Storage Unit Processor Advanced Visual Processing Unit Protection Light Armor Plating Weapon Spread Laser Energy Gun Spread Laser Energy Cannon EM Pulse Cannon Ballistic Gun Heavy Assault Rifle Launcher Missile Launcher Special Weapon Welding Torch Slashing Weapon Katana Build | -11 -10 -10 -9 -9 -8 -7 -7 -6 ------- Run | Jun Mat Min Mat Min Mat Fac DSF Fac Slots Evolved 8 | . . . 2 . 2 2 . 2 Power 1 | . . . 1 . . . . . Propulsion 2 | . . . . . . 1 . 1 Utility 5 | . . . 1 . 2 1 . 1 Weapon . | . . . . . . . . . Parts Attached 129 | . 10 9 22 2 21 2 12 51 Power 26 | . 1 3 2 1 9 . 2 8 Engine 18 | . 1 3 2 1 6 . 1 4 Core 8 | . . . . . 3 . 1 4 Reactor . | . . . . . . . . . Propulsion 36 | . 4 1 9 . 2 1 1 18 Treads 19 | . . . 7 . 2 1 1 8 Leg 13 | . 2 1 2 . . . . 8 Wheel 4 | . 2 . . . . . . 2 Hover . | . . . . . . . . . Flight . | . . . . . . . . . Utility 25 | . 3 . 5 1 5 1 4 6 Device 14 | . 2 . 3 . 1 1 4 3 Storage 3 | . . . 2 . . . . 1 Processor 4 | . 1 . . 1 1 . . 1 Hackware . | . . . . . . . . . Protection 4 | . . . . . 3 . . 1 Artifact . | . . . . . . . . . Weapon 42 | . 2 5 6 . 5 . 5 19 Energy Gun 23 | . 2 3 2 . 3 . 3 10 Energy Cannon 4 | . . . . . . . 1 3 Ballistic Gun 6 | . . 1 3 . 1 . . 1 Ballistic Cannon . | . . . . . . . . . Launcher 4 | . . . 1 . 1 . 1 1 Special Weapon 1 | . . 1 . . . . . . Impact Weapon . | . . . . . . . . . Slashing Weapon 4 | . . . . . . . . 4 Piercing Weapon . | . . . . . . . . . Special Melee Weapon . | . . . . . . . . . Unidentified Prototypes 3 | . . . 1 . 2 . . . Parts Lost 53 | . . 3 1 1 2 . 3 43 Power 12 | . . 1 . . 1 . . 10 Propulsion 17 | . . . . . . . 1 16 Utility 11 | . . . . 1 1 . 1 8 Weapon 13 | . . 2 1 . . . 1 9 Highest Loss Streak 15 | . . 2 1 1 1 . 3 15 To Critical Strikes . | . . . . . . . . . Average Slot Usage (%) 93 | . 93 100 93 99 99 100 96 79 Engine 14 | . 14 14 18 22 16 15 13 6 Treads 12 | . . . 17 22 18 23 23 10 Leg 10 | . 27 28 4 . . . . 12 Device 16 | . 1 14 19 21 17 23 27 19 Storage 10 | . 14 14 11 11 9 7 7 8 Processor 4 | . 5 . . . 7 7 7 4 Protection 2 | . . . . . 9 7 . . Energy Gun 14 | . 28 21 11 11 12 15 11 8 Ballistic Gun 4 | . . 1 10 11 5 . . 1 Naked Turns 10 | . . . . . . . . 10 Heaviest Build 65 | 10 15 18 38 38 52 53 53 65 Greatest Support 86 | 20 20 20 46 46 46 65 66 86 Greatest Overweight (x) 7 | . 1 . 1 . 1 . . 7 Average Overweight (x) . | . . . . . . . . . Largest Inventory Capacity 15 | . 8 8 15 15 15 15 15 15 Average Capacity 12 | . 8 8 12 15 15 15 15 14 Most Carried 15 | . 8 8 15 15 15 14 15 15 Average Carried 11 | . 7 7 11 14 14 13 13 12 Final Capacity 15 | 8 8 8 15 15 15 15 15 5 Final Carried 15 | 6 7 8 15 15 15 13 15 5 Class Distribution -------------------- 72% | Mutant 27% | Scavenger-Mutant Dominant Class ---------------- Mutant | -10/Materials Mutant | -10/Mines Mutant | -9/Materials Mutant | -9/Mines Mutant | -8/Materials Mutant | -7/Factory Mutant | -7/DSF Scavenger-Mutant | -6/Factory Resources | -11 -10 -10 -9 -9 -8 -7 -7 -6 ----------- Run | Jun Mat Min Mat Min Mat Fac DSF Fac Matter Collected 1838 | 200 90 113 346 56 433 . 146 454 Remotely . | . . . . . . . . . Salvage Created 4115 | . 253 201 486 46 932 . 344 1853 Parts 216 | . 23 9 37 6 45 . 21 75 Haulers Intercepted 9 | . 1 . 3 . 3 . 1 1 Recyclers Shooed 10 | . 1 . 1 . 2 . . 6 Parts Field Recycled . | . . . . . . . . . Retrieved Matter . | . . . . . . . . . Parts Self-Destructed . | . . . . . . . . . Prevented . | . . . . . . . . . Kills | -11 -10 -10 -9 -9 -8 -7 -7 -6 ------- Run | Jun Mat Min Mat Min Mat Fac DSF Fac Combat Hostiles Destroyed 81 | . 8 11 13 3 15 . 8 23 Melee 1 | . . . . . . . . 1 Guns 70 | . 8 11 13 3 13 . 6 16 Cannons 3 | . . . . . . . . 3 AOE 6 | . . . . . 2 . 2 2 Classes Destroyed 16 | . 5 2 2 . 3 . 2 2 Worker 3 | . . . . . . . . 3 Builder 3 | . . . . . . . . 3 Tunneler 1 | . . . 1 . . . . . Hauler 9 | . 1 . 3 . 3 . 1 1 Recycler 5 | . 1 . . . 1 . . 3 Watcher 7 | . 3 . 2 . 2 . . . Swarmer 32 | . 6 3 11 3 3 . 3 3 Grunt 22 | . 2 4 . . 6 . 2 8 Brawler 2 | . . . . . 1 . . 1 Duelist 1 | . . . . . 1 . . . Sentry 7 | . . . 2 . 3 . . 2 Demolisher 2 | . . 2 . . . . . . Hunter 7 | . . . . . 1 . 1 5 Programmer 4 | . . . . . . . 1 3 Heavy 2 | . . . . . . . 1 1 Assembled 2 | . . 2 . . . . . . Best Kill Streak 5 | . 5 3 3 3 4 . 3 5 Combat Bots Only 5 | . 5 3 3 3 4 . 3 5 Max Kills in Single Turn 3 | . 2 1 1 1 1 . 2 3 Gunslinging 1 | . . . . . . . . 1 Exploded 2 | . . . . . 1 . 2 1 Melee 1 | . . . . . . . . 1 Uniques/NPCs Destroyed . | . . . . . . . . . Combat | -11 -10 -10 -9 -9 -8 -7 -7 -6 -------- Run | Jun Mat Min Mat Min Mat Fac DSF Fac Damage Taken 7943 | . 189 605 373 110 844 . 733 5089 Core 1267 | . 38 123 51 17 86 . 88 864 Absorbed by Shields . | . . . . . . . . . Core Remaining (%) 77 | 100 . 35 . 83 84 . 87 . Volleys Fired 274 | . 22 21 48 7 64 . 24 88 Largest 2 | . 2 2 2 2 2 . 2 2 Hottest 149 | . 130 130 73 79 116 . 138 149 Shots Fired 534 | . 44 42 95 14 122 . 48 169 Gun 491 | . 44 42 94 14 118 . 35 144 Cannon 35 | . . . . . . . 12 23 Launcher 8 | . . . 1 . 4 . 1 2 Special . | . . . . . . . . . Kinetic 124 | . . 6 47 7 37 . . 27 Thermal 368 | . 44 30 40 7 81 . 35 131 Explosive 8 | . . . 1 . 4 . 1 2 Electromagnetic 34 | . . 6 7 . . . 12 9 Robot Hit Streak 26 | . 10 8 9 4 14 . 14 26 Robot Miss Streak 7 | . 7 7 3 1 4 . 2 3 Penetration Max 1 | . . . . . . . . 1 Secondary Targets 7 | . 2 2 . . . . . 3 Max Gunslinging Chain 1 | . 1 1 . . . . . 1 Shots Hit Robots 393 | . 38 35 57 8 77 . 32 146 Core Hits 243 | . 49 34 25 3 34 . 17 81 Critical Kills . | . . . . . . . . . Critical Parts Destroyed . | . . . . . . . . . Critical Strikes 16 | . . . 3 3 5 . 1 4 Burn 15 | . . . 3 3 5 . 1 3 Sever 1 | . . . . . . . . 1 Melee Attacks 10 | . . . . . . . . 10 Impact . | . . . . . . . . . Slashing 10 | . . . . . . . . 10 Piercing . | . . . . . . . . . Sneak Attacks 1 | . . . . . . . . 1 Combat Hostiles . | . . . . . . . . . Follow-up Attacks . | . . . . . . . . . Damage Inflicted 8366 | . 494 336 822 121 1621 . 931 4041 Guns 6304 | . 494 336 822 121 1406 . 522 2603 Cannons 625 | . . . . . . . 156 469 Explosions 1113 | . . . . . 215 . 253 645 Melee 241 | . . . . . . . . 241 Ramming 83 | . . . . . . . . 83 Kinetic 1319 | . . 59 422 50 320 . . 468 Thermal 5359 | . 494 209 336 71 1086 . 663 2500 Explosive 912 | . . . . . 215 . 112 585 Electromagnetic 452 | . . 68 64 . . . 156 164 Impact . | . . . . . . . . . Slashing 241 | . . . . . . . . 241 Piercing . | . . . . . . . . . Highest Corruption 3 | . . . . . 3 . 3 1 Average Corruption 2 | . . . . . 3 . 2 1 Corruption Purged . | . . . . . . . . . Corruption Blocked . | . . . . . . . . . Effects 31 | . . . . . 28 . 2 1 Message Errors 10 | . . . . . 9 . 1 . Matter Fused 11 | . . . . . 9 . 1 1 Heat Flow Errors 1 | . . . . . 1 . . . Energy Discharges 3 | . . . . . 3 . . . Data Loss (minor) 3 | . . . . . 3 . . . Data Loss (major) 1 | . . . . . 1 . . . Weapon Failures 2 | . . . . . 2 . . . Overload Shots . | . . . . . . . . . Overflow Damage 84 | . . . . . 10 . . 74 Projectiles . | . . . . . . . . . Explosions 38 | . . . . . 10 . . 28 Melee 46 | . . . . . . . . 46 Knockbacks . | . . . . . . . . . Impact . | . . . . . . . . . Kinetic . | . . . . . . . . . Secondary . | . . . . . . . . . Self-Inflicted Damage 206 | . . . . . 10 . 35 161 Shots 4 | . . . . . 1 . 1 2 Rammed 8 | . . . . . . . . 8 Targets Rammed 15 | . . . . . . . . 15 Kicked 7 | . . . . . . . . 7 Crushed . | . . . . . . . . . Highest Temperature 539 | . 539 276 81 189 84 . . 441 Average Temperature 96 | . 172 100 21 97 11 . . 147 Received Heat Transfer 1867 | . 45 163 36 . 279 . 54 1290 Effects 10 | . 5 3 . . . . . 2 Shutdowns 4 | . 3 . . . . . . 1 Interference 5 | . 1 3 . . . . . 1 Short Circuit 1 | . 1 . . . . . . . Siege Activations . | . . . . . . . . . Robots Corrupted . | . . . . . . . . . Combat Hostiles . | . . . . . . . . . Parts Fried 4 | . . 1 2 . . . 1 . Impact Corruptions . | . . . . . . . . . Robots Melted 1 | . . . . . . . . 1 Combat Hostiles 1 | . . . . . . . . 1 Parts Melted 19 | . . . 2 1 4 . 1 11 Heat Transferred 11201 | . 615 255 1221 407 2405 . 1286 5012 Parts Sabotaged . | . . . . . . . . . Parts Stolen . | . . . . . . . . . Parts Stripped . | . . . . . . . . . Power Chain Reactions 2 | . . . . . . . 1 1 Missiles Intercepted . | . . . . . . . . . Alert | -11 -10 -10 -9 -9 -8 -7 -7 -6 ------- Run | Jun Mat Min Mat Min Mat Fac DSF Fac Peak Influence 433 | . 168 108 275 60 243 34 214 433 Initial 112 | . . 8 19 . 23 34 23 112 Average 103 | . 75 58 131 4 74 34 122 177 Maximum Alert Level 2 | . . . 1 . 1 . 1 2 Low Security (%) 85 | . 100 100 73 100 97 100 83 60 Level 1 14 | . . . 26 . 2 . 16 36 Level 2 . | . . . . . . . . 3 Level 3 . | . . . . . . . . . Level 4 . | . . . . . . . . . Level 5 . | . . . . . . . . . High Security . | . . . . . . . . . Max Security . | . . . . . . . . . Sterilizations 1 | . . . . . . . 1 . Squads Dispatched 10 | . 1 . 1 . . . 1 7 Investigation 2 | . 1 . . . . . . 1 Extermination 1 | . . . . . . . . 1 Reinforcement 6 | . . . 1 . . . 1 4 Assault . | . . . . . . . . . Garrison 1 | . . . . . . . . 1 Intercept . | . . . . . . . . . Searches Triggered . | . . . . . . . . . Construction Impeded 2 | . . . . . . . . 2 Haulers Reinforced 1 | . . . . . . . . 1 Active Scanning Responses . | . . . . . . . . . Cargo Convoy Interrupts 1 | . . . . . . . . 1 Stealth | -11 -10 -10 -9 -9 -8 -7 -7 -6 --------- Run | Jun Mat Min Mat Min Mat Fac DSF Fac Distress Signals 8 | . 2 . 2 . 2 . . 2 Communications Jammed . | . . . . . . . . . Distress Signals . | . . . . . . . . . Times Spotted 141 | . 14 12 24 3 26 . 8 54 Peak Tracking Total 11 | . 4 3 4 3 5 . 3 11 Tactical Retreats 12 | . . 1 2 . 1 . . 8 Traps | -11 -10 -10 -9 -9 -8 -7 -7 -6 ------- Run | Jun Mat Min Mat Min Mat Fac DSF Fac Traps Triggered 3 | . 1 . . . . . . 2 Indirectly . | . . . . . . . . . Trap Hack Attempts . | . . . . . . . . . Triggered . | . . . . . . . . . Disarmed . | . . . . . . . . . Reprogrammed . | . . . . . . . . . Reused . | . . . . . . . . . Traps Extracted . | . . . . . . . . . Installed . | . . . . . . . . . Triggered . | . . . . . . . . . Machines | -11 -10 -10 -9 -9 -8 -7 -7 -6 ---------- Run | Jun Mat Min Mat Min Mat Fac DSF Fac Machines Disabled 5 | . . . . . 1 . . 4 Max in Single Turn 3 | . . . . . 1 . . 3 Machines Repaired . | . . . . . . . . . Machines Sabotaged . | . . . . . . . . . Overloaded Fab Kills . | . . . . . . . . . Hacking | -11 -10 -10 -9 -9 -8 -7 -7 -6 --------- Run | Jun Mat Min Mat Min Mat Fac DSF Fac Machines Accessed 20 | . 7 . 6 . 3 1 . 3 Terminals 20 | . 7 . 6 . 3 1 . 3 Fabricators . | . . . . . . . . . Repair Stations . | . . . . . . . . . Recycling Units . | . . . . . . . . . Scanalyzers . | . . . . . . . . . Garrison Access . | . . . . . . . . . Total Hacks 46 | . 14 . 17 . 8 1 . 6 Successful 21 | . 7 . 5 . 3 1 . 5 Failed 25 | . 7 . 12 . 5 . . 1 Catastrophic 2 | . 1 . . . 1 . . . Database Lockouts . | . . . . . . . . . Manual 4 | . 2 . 2 . . . . . Terminals 46 | . 14 . 17 . 8 1 . 6 Fabricators . | . . . . . . . . . Repair Stations . | . . . . . . . . . Recycling Units . | . . . . . . . . . Scanalyzers . | . . . . . . . . . Garrison Access . | . . . . . . . . . Terminal Hacks 21 | . 7 . 5 . 3 1 . 5 Record 3 | . . . 1 . 1 . . 1 Prototype ID Bank 3 | . 2 . 1 . . . . . Open DSF 1 | . . . . . . 1 . . Branch Access Points 1 | . . . . . . . . 1 Emergency Access Points 1 | . 1 . . . . . . . Repair Station Index 1 | . . . . . . . . 1 Alert Level 2 | . . . 1 . 1 . . . Unreport Threat 1 | . . . 1 . . . . . Locate Traps 3 | . 2 . . . . . . 1 Recall Reinforcements 1 | . . . 1 . . . . . Hauler Manifests 1 | . . . . . 1 . . . Registered Components 1 | . 1 . . . . . . . Zone Layout 2 | . 1 . . . . . . 1 Fabricator Hacks . | . . . . . . . . . Repair Station Hacks . | . . . . . . . . . Recycling Unit Hacks . | . . . . . . . . . Scanalyzer . | . . . . . . . . . Garrison Access Hacks . | . . . . . . . . . Unauthorized Hacks . | . . . . . . . . . Terminals . | . . . . . . . . . Fabricators . | . . . . . . . . . Repair Stations . | . . . . . . . . . Recycling Units . | . . . . . . . . . Scanalyzers . | . . . . . . . . . Garrison Access . | . . . . . . . . . Data Cores Recovered . | . . . . . . . . . Used . | . . . . . . . . . Hacking Detections 15 | . 7 . 4 . 3 . . 1 Full Trace Events . | . . . . . . . . . Feedback Events . | . . . . . . . . . Feedback Blocked . | . . . . . . . . . Robot Schematics Acquired . | . . . . . . . . . Robots Built . | . . . . . . . . . Authchips . | . . . . . . . . . Time . | . . . . . . . . . Total Robot Build Rating . | . . . . . . . . . Part Schematics Acquired . | . . . . . . . . . Parts Built . | . . . . . . . . . Authchips . | . . . . . . . . . Time . | . . . . . . . . . Total Part Build Rating . | . . . . . . . . . Parts Repaired . | . . . . . . . . . Time . | . . . . . . . . . Parts Recycled . | . . . . . . . . . Recycled Matter . | . . . . . . . . . Retrieved Matter . | . . . . . . . . . Retrieved Components . | . . . . . . . . . Parts Scanalyzed . | . . . . . . . . . Part Schematics Acquired . | . . . . . . . . . Parts Damaged . | . . . . . . . . . Bothacking | -11 -10 -10 -9 -9 -8 -7 -7 -6 ------------ Run | Jun Mat Min Mat Min Mat Fac DSF Fac Used RIF Installer . | . . . . . . . . . Robots Hacked . | . . . . . . . . . Non-combat . | . . . . . . . . . Combat . | . . . . . . . . . Robot Hacks Applied . | . . . . . . . . . Relay Couplers Released . | . . . . . . . . . Fabnet Peak Effective % . | . . . . . . . . . Robots Rewired . | . . . . . . . . . Allies Hacked . | . . . . . . . . . Hacks Repelled . | . . . . . . . . . Allies | -11 -10 -10 -9 -9 -8 -7 -7 -6 -------- Run | Jun Mat Min Mat Min Mat Fac DSF Fac Total Allies . | . . . . . . . . . Largest Group . | . . . . . . . . . Highest-Rated Group . | . . . . . . . . . Highest-Rated Ally . | . . . . . . . . . Total Orders . | . . . . . . . . . Ally Attacks . | . . . . . . . . . Total Damage . | . . . . . . . . . Kills . | . . . . . . . . . Allies Corrupted . | . . . . . . . . . Allies Melted . | . . . . . . . . . Intel | -11 -10 -10 -9 -9 -8 -7 -7 -6 ------- Run | Jun Mat Min Mat Min Mat Fac DSF Fac Robot Analysis Total . | . . . . . . . . . Derelict Logs Recovered 2 | . . 1 . 1 . . . . Drone Launches . | . . . . . . . . . Drone Recoveries . | . . . . . . . . . Exploration | -11 -10 -10 -9 -9 -8 -7 -7 -6 ------------- Run | Jun Mat Min Mat Min Mat Fac DSF Fac Turns Passed 7464 | . 989 879 1496 449 1700 6 487 1458 Spaces Moved 4116 | 1 724 621 796 266 750 3 233 722 Core 55 | . . . . . . . . 55 Treads 2135 | . . . 647 266 750 3 233 236 Legs 1844 | 1 720 621 149 . . . . 353 Wheels 82 | . 4 . . . . . . 78 Hover . | . . . . . . . . . Flight . | . . . . . . . . . Fastest Speed 50 | 120 80 120 120 160 152 158 158 50 Average Speed 144 | 120 120 120 152 160 178 158 162 132 Slowest Speed 400 | 120 190 120 190 160 237 158 163 400 Overloaded Moves . | . . . . . . . . . Propulsion Burnouts . | . . . . . . . . . Robots Hopped . | . . . . . . . . . Cave-ins Triggered . | . . . . . . . . . Exploration Rate (%) 60 | 2 94 98 81 50 46 . 92 24 Regions Visited 8 Branch Regions 2 Pre-discovered Areas 1 | . . . . 1 . . . . Known Exits Taken 4 | . . 1 . 1 1 1 . . Unknown Exits Taken 3 | 1 1 . 1 . . . . . Scrap Searched 2 | . . 1 . 1 . . . . Spaces Dug 12 | . . . 11 . . . . 1 Terrain Destroyed 81 | . . . 11 . 17 . 9 44 Melee 1 | . . . . . . . . 1 Projectile . | . . . . . . . . . AOE 80 | . . . 11 . 17 . 9 43 Terrain Rammed . | . . . . . . . . . Walls Destroyed . | . . . . . . . . . Machines Disabled . | . . . . . . . . . Actions | -11 -10 -10 -9 -9 -8 -7 -7 -6 --------- Run | Jun Mat Min Mat Min Mat Fac DSF Fac Total 5100 | . 802 715 991 275 994 4 294 1025 Wait 411 | . 29 52 83 1 134 . 10 102 Move 4108 | . 723 620 795 265 749 2 232 722 Hop . | . . . . . . . . . Pick Up 67 | . 6 4 18 . 9 . 8 22 Fast Attach 36 | . 5 3 7 . 4 . 2 15 Attach 42 | . 1 3 2 1 5 2 3 25 Detach 12 | . 1 3 3 . 1 . . 4 Swap 51 | . 4 3 13 1 12 . 7 11 Drop 74 | . 11 6 22 . 16 . 8 11 Fire 274 | . 22 21 48 7 64 . 24 88 Melee 10 | . . . . . . . . 10 Ram 6 | . . . . . . . . 6 Kick 7 | . . . . . . . . 7 Crush 2 | . . . . . . . . 2 Escape Stasis . | . . . . . . . . . Rewire . | . . . . . . . . . Trap . | . . . . . . . . . Miscellaneous . | . . . . . . . . . Route ------- -11/Junkyard -10/Materials (discovered 4 exits: *Mat x3 / [*Min]) -10/Mines (discovered 2 exits: *Mat x2) -9/Materials (discovered 6 exits: *Mat x3 / [*Min] / [*Sto x2]) -9/Mines -8/Materials (discovered 2 exits: *Fac x2) -7/Factory -7/DSF -6/Factory (discovered 4 exits: *Low x2 / Ext x2) History --------- Turn | Location | Event 1 | -11/Junkyard | Discovered new exit (range 0) 1 | -11/Junkyard | Entered Materials 309 | -10/Materials | Build established: Mutant 426 | -10/Materials | Discovered new exit (range 4) 429 | -10/Materials | Identified exit to Materials 609 | -10/Materials | Discovered exit to Materials (range 4) 813 | -10/Materials | Discovered new exit (range 14) 921 | -10/Materials | Discovered exit to Materials (range 11) 990 | -10/Materials | Entered Mines 991 | -10/Mines | Assembled infested the area 1007 | -10/Mines | Learned Materials trap positions 1467 | -10/Mines | Discovered exit to Materials (range 8) 1685 | -10/Mines | Discovered exit to Materials (range 11) 1744 | -10/Mines | Joined a pair of Derelicts in attacking an 0b10 outpost 1819 | -10/Mines | Core integrity fell below 50% 1869 | -10/Mines | Entered Materials 1869 | -9/Materials | Evolved 2 slots: Power x1, Utility x1 1870 | -9/Materials | Loaded intel: 16 trap records 1871 | -9/Materials | Discovered new exit (range 14) 2133 | -9/Materials | Discovered new exit (range 7) 2329 | -9/Materials | Discovered new exit (range 16) 2588 | -9/Materials | Discovered new exit (range 6) 3082 | -9/Materials | Discovered new exit (range 11) 3104 | -9/Materials | Build established: Scavenger-Mutant 3286 | -9/Materials | Discovered new exit (range 12) 3365 | -9/Materials | Entered Mines 3518 | -9/Mines | Learned location of Storage (-9) 3566 | -9/Mines | Build established: Mutant 3722 | -9/Mines | Learned location of 2 exits from Materials 3765 | -9/Mines | Discovered new exit (range 5) 3808 | -9/Mines | Identified exit to Materials 3814 | -9/Mines | Entered Materials 3814 | -8/Materials | Evolved 2 slots: Utility x2 3815 | -8/Materials | Identified exit to Factory 4512 | -8/Materials | Build established: Scavenger-Mutant 5063 | -8/Materials | Build established: Mutant 5514 | -8/Materials | Entered Factory 5514 | -7/Factory | Evolved 2 slots: Propulsion x1, Utility x1 5519 | -7/Factory | Identified exit to DSF 5520 | -7/Factory | Entered DSF 5575 | -7/DSF | Additional patrols routed to DSF 5598 | -7/DSF | Lost 3 parts (1n1u1w) 5655 | -7/DSF | Discovered new exit (range 15) 5958 | -7/DSF | Sterilization system engaged 5978 | -7/DSF | Ambient heat levels rising (+10) 5993 | -7/DSF | Ambient heat levels rising (+10) 6007 | -7/DSF | Entered Factory 6007 | -6/Factory | Evolved 2 slots: Propulsion x1, Utility x1 6400 | -6/Factory | Garrison activated, responded to threat 6540 | -6/Factory | Lost 15 parts (5p6n1u3w) 6675 | -6/Factory | Build established: Scavenger-Mutant 6855 | -6/Factory | Lost 3 parts (1p2n) 6957 | -6/Factory | Lost 3 parts (1p1n1u) 6961 | -6/Factory | Identified exit to Lower Caves 6961 | -6/Factory | Identified exit to Extension 7095 | -6/Factory | Core integrity fell below 50% 7347 | -6/Factory | Core integrity fell below 20% 7353 | -6/Factory | Lost 12 parts (3p3n3u3w) 7448 | -6/Factory | Lost 3 parts (3n) 7456 | -6/Factory | Cargo convoy interrupted 7465 | -6/Factory | Destroyed by A-27 Freighter with PD Laser Last Messages --------------- 07455_ C-30 ARC bursts open, deploying its payload. 07455_ H-66 Slayer unfolds itself. 07455_ X-72 Disruptor unfolds itself. 07455_ P-60 Hacker unfolds itself. 07455_ H-66 Slayer unfolds itself. 07455_ M-28 Smith unfolds itself. 07455_ Slug penetrates Pressure Siphon. 07455_ Pressure Siphon disabled. 07455_ P-60 Hacker suffers critical hit (Destroy). 07455_ Penetrated by Slug. 07455_ Slug penetrates Wall. 07456_ ALERT: Cargo convoy interrupted, initiating access lockdown. 07458_ W-25 Informer sends out distress signal. 07459_ Sneak attack on U-05 Engineer. 07459_ Destroyed Terrain Scanner. 07459_ Destroyed Wheel. 07459_ ALERT: Construction progress impeded, dispatching reinforcements to local area. 07463_ K-01 Serf destroyed. 07463_ Katana destroyed. Map ----- +----------------------------------------------------+ | ????????????????????????????????????????????????# | | ????????????????????????????????????????????????# | | ????????????????????????????????????????????????# | | ????????????????????????????????????????????????# | | ????????????????????????????????????????????????# | | ???????????????????????????????????!????????????# | | ??????????????????????????????????? ????????????? | | ????????????????????????????### ??? ????????????? | | ???????????????????????????? ?? "????????????? | | ????????????????????????????? ?? "S???????????? | | ?????????????????????????? ? ""???????????? | | ?????????????????????????? ? "???????????? | | ??????????????????????????# ? ???????????? | | ??????????????????????????+ ##+#???????????? | | ??????????????????????????# " #???????????? | | ??????????????????????????# %%"#???????????? | | ??????????????????????????# ""%" #???????????? | | ??????????????????????????# ^""" ########????? | | ??????????????????????????# """ # #????? | | ??????????????????????????+ """ + ! #????? | | ?????????????????????????????# # #????? | | ?????????????????????????????# # ] #????? | | ?????????????????????????????# # ! #????? | | ?????????????????????????????# # #????? | | ?????????????????#############xg ########????? | | ???????????+ u u=%@ Ap g w#???????????? | | ?????????????????#############g#####+#####???????? | | ??????????????????????# #???????? | | ??????????????????????# """ """ """ #???????? | | ??????????????????????# """ """ """ #???????? | | ??????????????????????# """ """ !! """ #???????? | | ??????????????????????# !! #???????? | | ??????????????????????# #???????? | | ??????????????????????# #???????? | | ??????????????????????# #???????? | | ??????????????????????##########+#########???????? | | ????????????????????????????# #????????????? | | ????????????????????????????# ############## | | ????????????????????????????# [ | | ????????????????????????????# ![ | | ????????????????????????????# [ | | ????????????????????????????# ############+# | | ????????????????????????????# #?????????? | | ????????????????????????????####+####?????????? | | ?????????????????????????????????????????????? | | ?????????????????????????????????????????????? | | ?????????????????????????????????????????????" """ | | ?????????????????????????????????????????????" """ | | ????????????????????????????????????????????"" """ | | ????????????????????????????????????????????"" """ | +----------------------------------------------------+ Best States ------------- Heat Dissipation 84 Coolant Potential 65 Energy Generation 24 Energy Capacity 1500 Matter Stores 300 Matter Capacity 300 Sight Range 20 Robot Scan Range 15 Terrain Scan Range 14 Terrain Scan Density 10 Armor Coverage 300 Resistance: TH 10 Evasion (%) 55 Recoil Reduction 4 Item Schematics ----------------- None Robot Schematics ------------------ None Fabricated ------------ Nothing Alien Tech Used ----------------- None Achievements -------------- None Challenges ------------ None Game ------ Seed AdvancedBehemothSheargun Manual? 0 Play Time 01:23:09 Cumulative 118.8 hours Start 2023.05.13 @ 19:45:26 End 2023.05.13 @ 21:26:09 Sessions 5 Manual Loads 0 Difficulty Rogue Special Mode None Game No. 195 Rogue 195 Adventurer 0 Explorer 0 Win Type - Total 0 Types 0/0/0/0/0/0/0/0/0 Lore% 56 Gallery% 59 Achievement% 46 Wizard Run 0 Options --------- ASCII 0 Keyboard 1 Movement Numpad Keybinds 0 Fullscreen 1 Font 18/SmallcapsGlow Map View 76x50 Tactical HUD 1 Map Filters NONE Filters NONE Steam 1 RUN: a07bd460-32b7-4fba-9624-bf002935233f